Workbook

Sheet Лист1
A1: однажды в студеную зимнюю пору я из лесу вышел был сильный мороз | J1: =LEN(A1) -> 64 | L1: 25
A2: гляжу, поднимается медленно в гору лошадка, везущая хворосту воз | J2: =LEN(A2) -> 64 | L2: 24
A3: около леса, как в мягкой постели выспаться можно-покой и простор | J3: 64 | L3: 22
A4: листья поблекнуть ещё не успели, желты и свежи, лежат, как ковёр | J4: 64 | L4: 22
A5: мы, надрывавшись под зноем, под холодом, с вечно согнутой спиной | J5: 64 | L5: 24
A6: жили в землянке, боролися с голодом мёрзли и мокли болели цингой | J6: 64 | L6: 21
A7: да не робей - за отчизну любезную вынес достаточно русский народ! | J7: 65 | L7: 22
A8: вынес и эту дорогу железную, вынесет всё, что господь ни пошлет! | J8: 64 | L8: 25
A11: 1) Подсчитать частоты символов
A12: 2) Отсортировать их по частоте, если совпадает-по алфавиту(знаки после букв)
A13: 3) Построить дерево Шеннона-Фано, записав в таблицу коды символов
A14: 4) Вычислить произведения частоты каждого символа на длину его кода
A15: 5) Найти сумму этих произведений (общую длину кода)
A16: 6) Построить дерево Хаффмана, записав в таблицу коды символов
A17: 7) Вычислить произведения частоты каждого символа на длину его кода
A18: 8) Найти сумму этих произведений

Sheet Лист2
F1: 0 | I1: 1 | N1: 0 | Q1: 1 | V1: 0 | Y1: 1 | AD1: 0 | AG1: 1 | AI1: 0 | AJ1: 1 | AO1: 0 | AR1: 1 | AV1: 0 | AY1: 1 | BA1: 0 | BB1: 1 | BG1: 0 | BJ1: 1 | BL1: 0 | BM1: 1 | BO1: 0 | BP1: 1
A2: sp | B2: 11 | C2: 000 | D2: =LEN(C2)*B2 -> 33 | F2: sp | G2: 11 | H2: 4 | I2: л | K2: sp | L2: 11 | N2: sp | O2: 11 | P2: 4 | Q2: у | S2: sp | T2: 11 | V2: sp | W2: 11 | X2: 2 | Y2: в | AA2: в | AB2: 2 | AD2: в | AE2: 2 | AF2: 2 | AG2: р | AI2: р | AJ2: ь | AL2: у | AM2: 4 | AO2: у | AP2: 4 | AQ2: 3 | AR2: д | AT2: у | AU2: 4 | AV2: у | AW2: 4 | AX2: 3 | AY2: с | BA2: с | BB2: ш | BD2: д | BE2: 3 | BG2: д | BH2: 3 | BI2: 3 | BJ2: з | BL2: д | BM2: й | BO2: з | BP2: ж
A3: л | B3: 4 | C3: 1000 | D3: =LEN(C3)*B3 -> 16 | F3: у | G3: 4 | H3: 4 | I3: н | K3: у | L3: 4 | N3: в | O3: 2 | P3: 3 | Q3: д | S3: в | T3: 2 | X3: 2 | Y3: р | AA3: р | AB3: 2 | AF3: 1 | AG3: ь | AL3: д | AM3: 3 | AO3: с | AP3: 3 | AQ3: 3 | AR3: з | AT3: с | AU3: 3 | AX3: 1 | AY3: ш | BD3: з | BE3: 3 | BG3: й | BH3: 1 | BI3: 1 | BJ3: ж
A4: н | B4: 4 | C4: 1100 | D4: 16 | F4: д | G4: 3 | H4: 4 | I4: о | K4: д | L4: 3 | N4: р | O4: 2 | P4: 3 | Q4: з | S4: р | T4: 2 | X4: 1 | Y4: ь | AA4: ь | AB4: 1 | AL4: з | AM4: 3 | AO4: ш | AP4: 1 | AQ4: 1 | AR4: ж | AT4: ш | AU4: 1 | BD4: ж | BE4: 1
A5: о | B5: 4 | C5: 1110 | D5: 16 | F5: з | G5: 3 | H5: 4 | I5: ы | K5: з | L5: 3 | N5: ь | O5: 1 | P5: 3 | Q5: с | S5: ь | T5: 1 | AL5: с | AM5: 3 | AQ5: 1 | AR5: й | BD5: й | BE5: 1
A6: у | B6: 4 | C6: 0100 | D6: 16 | F6: с | G6: 3 | H6: 3 | I6: е | K6: с | L6: 3 | P6: 1 | Q6: ж | AL6: ж | AM6: 1 | AW6: =SUM(AW2:AW5) -> 4 | AX6: =SUM(AX2:AX5) -> 4
A7: ы | B7: 4 | C7: 1010 | D7: 16 | F7: в | G7: 2 | H7: 3 | I7: и | K7: в | L7: 2 | P7: 1 | Q7: й | W7: =SUM(W2:W6) -> 11 | X7: =SUM(X2:X6) -> 5 | AL7: й | AM7: 1
A8: д | B8: 3 | C8: 01100 | D8: 15 | F8: р | G8: 2 | H8: 3 | I8: ю | K8: р | L8: 2 | P8: 1 | Q8: ш | AL8: ш | AM8: 1 | AP8: =SUM(AP2:AP7) -> 8 | AQ8: =SUM(AQ2:AQ7) -> 8
A9: е | B9: 3 | C9: 10110 | D9: 15 | F9: ж | G9: 1 | H9: 2 | I9: м | K9: ж | L9: 1
A10: з | B10: 3 | C10: 01110 | D10: 15 | F10: й | G10: 1 | H10: 1 | I10: а | K10: й | L10: 1
A11: и | B11: 3 | C11: 11110 | D11: 15 | F11: ш | G11: 1 | H11: 1 | I11: б | K11: ш | L11: 1
A12: с | B12: 3 | C12: 0100 | D12: 12 | F12: ь | G12: 1 | H12: 1 | I12: п | K12: ь | L12: 1
A13: ю | B13: 3 | C13: 11010 | D13: 15 | H13: 1 | I13: т
A14: в | B14: 2 | C14: 0010 | D14: 8 | H14: 1 | I14: я | O14: =SUM(O2:O13) -> 16 | P14: =SUM(P2:P13) -> 16
A15: м | B15: 2 | C15: 10010 | D15: 10
A16: р | B16: 2 | C16: 00110 | D16: 10 | G16: =SUM(G2:G15) -> 32 | H16: =SUM(H2:H15) -> 32 | N16: 0 | Q16: 1 | V16: 0 | Y16: 1 | AD16: 0 | AG16: 1 | AL16: 0 | AO16: 1 | AQ16: 0 | AR16: 1 | AT16: 0 | AW16: 1 | AY16: 0 | AZ16: 1 | BE16: 0 | BH16: 1 | BJ16: 0 | BK16: 1 | BM16: 0 | BN16: 1 | BP16: 0 | BQ16: 1 | BS16: 0 | BT16: 1
A17: а | B17: 1 | C17: 100110 | D17: 6 | K17: л | L17: 4 | N17: л | O17: 4 | P17: 4 | Q17: н | S17: л | T17: 4 | V17: л | W17: 4 | X17: 4 | Y17: ы | AA17: л | AB17: 4 | AD17: л | AE17: 4 | AF17: 2 | AG17: м | AI17: м | AJ17: 2 | AL17: м | AM17: 2 | AN17: 1 | AO17: а | AQ17: а | AR17: б | AT17: ы | AU17: 4 | AV17: 3 | AW17: е | AY17: е | AZ17: я | BB17: н | BC17: 4 | BE17: н | BF17: 4 | BG17: 4 | BH17: о | BJ17: н | BK17: ю | BM17: ю | BN17: п | BP17: о | BQ17: и | BS17: и | BT17: т
A18: б | B18: 1 | C18: 100111 | D18: 6 | K18: н | L18: 4 | N18: ы | O18: 4 | P18: 4 | Q18: о | S18: ы | T18: 4 | V18: м | W18: 2 | X18: 3 | Y18: е | AA18: м | AB18: 2 | AF18: 1 | AG18: а | AI18: а | AJ18: 1 | AN18: 1 | AO18: б | AV18: 1 | AW18: я | BB18: о | BC18: 4 | BE18: ю | BF18: 3 | BG18: 3 | BH18: и | BK18: п | BQ18: т
A19: ж | B19: 1 | C19: 01111 | D19: 5 | K19: о | L19: 4 | N19: е | O19: 3 | P19: 3 | Q19: и | S19: е | T19: 3 | V19: а | W19: 1 | X19: 1 | Y19: я | AA19: а | AB19: 1 | AF19: 1 | AG19: б | AI19: б | AJ19: 1 | BB19: и | BC19: 3 | BE19: п | BF19: 1 | BG19: 1 | BH19: т
A20: й | B20: 1 | C20: 01101 | D20: 5 | K20: ы | L20: 4 | N20: м | O20: 2 | P20: 3 | Q20: ю | S20: м | T20: 2 | V20: б | W20: 1 | AA20: б | AB20: 1 | BB20: ю | BC20: 3
A21: п | B21: 1 | C21: 11011 | D21: 5 | K21: е | L21: 3 | N21: а | O21: 1 | P21: 1 | Q21: п | S21: а | T21: 1 | BB21: п | BC21: 1
A22: т | B22: 1 | C22: 11111 | D22: 5 | K22: и | L22: 3 | N22: б | O22: 1 | P22: 1 | Q22: т | S22: б | T22: 1 | BB22: т | BC22: 1
A23: ш | B23: 1 | C23: 01011 | D23: 5 | K23: ю | L23: 3 | N23: я | O23: 1 | S23: я | T23: 1
A24: ь | B24: 1 | C24: 00111 | D24: 5 | K24: м | L24: 2 | W24: =SUM(W17:W23) -> 8 | X24: =SUM(X17:X23) -> 8
A25: я | B25: 1 | C25: 10111 | D25: 5 | K25: а | L25: 1
D26: =SUM(D2:D25) -> 275 | K26: б | L26: 1
K27: п | L27: 1
K28: т | L28: 1
K29: я | L29: 1
O30: =SUM(O17:O29) -> 16 | P30: =SUM(P17:P29) -> 16

Sheet 1
B1: 11 | D1: 000 | E1: 3 | F1: 11 | G1: =E1*F1 -> 33 | H1: 100 | I1: =LEN(H1)*F1 -> 33 | K1: N= | L1: 64 | M1: Iх= | N1: =CEILING(L1*LOG(L2,2),1) -> 294
A2: л | B2: 4 | C2: м | D2: 0010 | E2: 4 | F2: 2 | G2: =E2*F2 -> 8 | H2: 0000 | I2: =LEN(H2)*F2 -> 8 | K2: M= | L2: 24 | M2: Iш= | N2: =CEILING(11*LOG(64/11,2)+20*LOG(64/4,2)+18*LOG(64/3,2)+6*LOG(64/2,2)+9*LOG(64,2),1) -> 272
A3: н | B3: 4 | C3: у | D3: 0100 | E3: 4 | F3: 4 | G3: 16 | H3: 0001 | I3: 16
A4: о | B4: 4 | C4: л | D4: 1000 | E4: 4 | F4: 4 | G4: 16 | H4: 0010 | I4: 16
A5: у | B5: 4 | C5: ы | D5: 1010 | E5: 4 | F5: 4 | G5: 16 | H5: 0011 | I5: 16
A6: ы | B6: 4 | C6: н | D6: 1100 | E6: 4 | F6: 4 | G6: 16 | H6: 1010 | I6: 16
A7: д | B7: 3 | C7: о | D7: 1110 | E7: 4 | F7: 4 | G7: 16 | H7: 10110 | I7: 20
A8: з | B8: 3 | C8: р | D8: 00110 | E8: 5 | F8: 2 | G8: 10 | H8: 10111 | I8: 10
A9: и | B9: 3 | C9: ь | D9: 00111 | E9: 5 | F9: 1 | G9: 5 | H9: 0100 | I9: 4
A10: с | B10: 3 | C10: ю | D10: 01010 | E10: 5 | F10: 3 | G10: 15 | H10: 0101 | I10: 12
A11: ю | B11: 3 | C11: ш | D11: 01011 | E11: 5 | F11: 1 | G11: 5 | H11: 0110 | I11: 4
A12: в | B12: 2 | C12: д | D12: 01100 | E12: 5 | F12: 3 | G12: 15 | H12: 0111 | I12: 12
A13: е | B13: 2 | C13: й | D13: 01101 | E13: 5 | F13: 1 | G13: 5 | H13: 11000 | I13: 5
A14: м | B14: 2 | C14: и | D14: 01110 | E14: 5 | F14: 3 | G14: 15 | H14: 11001 | I14: 15
A15: р | B15: 2 | C15: ж | D15: 01111 | E15: 5 | F15: 1 | G15: 5 | H15: 11010 | I15: 5
A16: ё | B16: 1 | C16: е | D16: 10010 | E16: 5 | F16: 2 | G16: 10 | H16: 11011 | I16: 10
A17: а | B17: 1 | C17: з | D17: 10110 | E17: 5 | F17: 3 | G17: 15 | H17: 111000 | I17: 18
A18: б | B18: 1 | C18: т | D18: 10111 | E18: 5 | F18: 1 | G18: 5 | H18: 111001 | I18: 6
A19: ж | B19: 1 | C19: в | D19: 11010 | E19: 5 | F19: 2 | G19: 10 | H19: 111010 | I19: 12
A20: й | B20: 1 | C20: с | D20: 11110 | E20: 5 | F20: 3 | G20: 15 | H20: 111011 | I20: 18
A21: п | B21: 1 | C21: я | D21: 11111 | E21: 5 | F21: 1 | G21: 5 | H21: 111100 | I21: 6
A22: т | B22: 1 | C22: ё | D22: 100110 | E22: 6 | F22: 1 | G22: 6 | H22: 111101 | I22: 6
A23: ш | B23: 1 | C23: п | D23: 100111 | E23: 6 | F23: 1 | G23: 6 | H23: 111110 | I23: 6
A24: ь | B24: 1 | C24: а | D24: 110110 | E24: 6 | F24: 1 | G24: 6 | H24: 111111 | I24: 6
A25: я | B25: 1 | C25: б | D25: 110111 | E25: 6 | F25: 1 | G25: =SUM(G1:G24) -> 274 | I25: =SUM(I1:I24) -> 280

Sheet 2
B1: 8 | D1: 000 | E1: 3 | F1: 8 | G1: =E1*F1 -> 24 | H1: 000 | I1: =LEN(H1)*F1 -> 24 | K1: N= | L1: 64 | M1: Iх= | N1: =CEILING(L1*LOG(L2,2),1) -> 294
A2: о | B2: 7 | C2: о | D2: 1000 | E2: 4 | F2: 7 | G2: =E2*F2 -> 28 | H2: 010 | I2: =LEN(H2)*F2 -> 21 | K2: M= | L2: 24 | M2: Iш= | N2: =CEILING(8*LOG(64/8,2)+7*LOG(64/7,2)+16*LOG(64/4,2)+12*LOG(64/3)+14*LOG(64/2,2)+7*LOG(64,2),1) -> 239
A3: а | B3: 4 | C3: а | D3: 1100 | E3: 4 | F3: 4 | G3: 16 | H3: 0010 | I3: 16
A4: в | B4: 4 | C4: в | D4: 0100 | E4: 4 | F4: 4 | G4: 16 | H4: 0011 | I4: 16
A5: е | B5: 4 | C5: е | D5: 1110 | E5: 4 | F5: 4 | G5: 16 | H5: 1000 | I5: 16
A6: у | B6: 4 | C6: у | D6: 0110 | E6: 4 | F6: 4 | G6: 16 | H6: 1001 | I6: 16
A7: д | B7: 3 | C7: д | D7: 10100 | E7: 5 | F7: 3 | G7: 15 | H7: 0110 | I7: 12
A8: л | B8: 3 | C8: л | D8: 01110 | E8: 5 | F8: 3 | G8: 15 | H8: 0111 | I8: 12
A9: н | B9: 3 | C9: н | D9: 11110 | E9: 5 | F9: 3 | G9: 15 | H9: 10100 | I9: 15
A10: я | B10: 3 | C10: я | D10: 00100 | E10: 5 | F10: 3 | G10: 15 | H10: 10101 | I10: 15
A11: , | B11: 2 | C11: , | D11: 10110 | E11: 5 | F11: 2 | G11: 10 | H11: 11000 | I11: 10
A12: г | B12: 2 | C12: г | D12: 00110 | E12: 5 | F12: 2 | G12: 10 | H12: 11001 | I12: 10
A13: з | B13: 2 | C13: з | D13: 11010 | E13: 5 | F13: 2 | G13: 10 | H13: 11010 | I13: 10
A14: м | B14: 2 | C14: м | D14: 01010 | E14: 5 | F14: 2 | G14: 10 | H14: 11011 | I14: 10
A15: р | B15: 2 | C15: р | D15: 10111 | E15: 5 | F15: 2 | G15: 10 | H15: 11100 | I15: 10
A16: с | B16: 2 | C16: с | D16: 01011 | E16: 5 | F16: 2 | G16: 10 | H16: 11101 | I16: 10
A17: т | B17: 2 | C17: т | D17: 11011 | E17: 5 | F17: 2 | G17: 10 | H17: 101100 | I17: 12
A18: ж | B18: 1 | C18: ж | D18: 001110 | E18: 6 | F18: 1 | G18: 6 | H18: 101101 | I18: 6
A19: и | B19: 1 | C19: и | D19: 001111 | E19: 6 | F19: 1 | G19: 6 | H19: 101110 | I19: 6
A20: к | B20: 1 | C20: к | D20: 10101 | E20: 5 | F20: 1 | G20: 5 | H20: 101111 | I20: 6
A21: п | B21: 1 | C21: п | D21: 1001 | E21: 4 | F21: 1 | G21: 4 | H21: 111100 | I21: 6
A22: х | B22: 1 | C22: х | D22: 00101 | E22: 5 | F22: 1 | G22: 5 | H22: 111101 | I22: 6
A23: ш | B23: 1 | C23: ш | D23: 01111 | E23: 5 | F23: 1 | G23: 5 | H23: 111110 | I23: 6
A24: щ | B24: 1 | C24: щ | D24: 11111 | E24: 5 | F24: 1 | G24: 5 | H24: 111111 | I24: 6
B25: =SUM(B1:B24) -> 64 | F25: =SUM(F1:F24) -> 64 | G25: =SUM(G1:G24) -> 282 | I25: =SUM(I1:I24) -> 277

Sheet 3
A1: о | B1: 11 | C1: о | D1: 000 | E1: 3 | F1: 11 | G1: =E1*F1 -> 33 | H1: 000 | I1: =LEN(H1)*F1 -> 33 | K1: N= | L1: 64 | M1: Iх= | N1: =CEILING(L1*LOG(L2,2),1) -> 286
B2: 9 | D2: 100 | E2: 3 | F2: 9 | G2: =E2*F2 -> 27 | H2: 010 | I2: =LEN(H2)*F2 -> 27 | K2: M= | L2: 22 | M2: Iш= | N2: =CEILING(11*LOG(64/11,2)+9*LOG(64/9,2)+10*LOG(64/5,2)+4*LOG(64/4,2)+9*LOG(64/3,2)+14*LOG(64/2,2)+7*LOG(64,2),1) -> 258
A3: к | B3: 5 | C3: к | D3: 1100 | E3: 4 | F3: 5 | G3: 20 | H3: 0010 | I3: 20
A4: с | B4: 5 | C4: с | D4: 0100 | E4: 4 | F4: 5 | G4: 20 | H4: 0011 | I4: 20
A5: п | B5: 4 | C5: п | D5: 1110 | E5: 4 | F5: 4 | G5: 16 | H5: 1000 | I5: 16
A6: а | B6: 3 | C6: а | D6: 01100 | E6: 5 | F6: 3 | G6: 15 | H6: 1001 | I6: 12
A7: л | B7: 3 | C7: л | D7: 11110 | E7: 5 | F7: 3 | G7: 15 | H7: 1100 | I7: 12
A8: т | B8: 3 | C8: т | D8: 01110 | E8: 5 | F8: 3 | G8: 15 | H8: 1101 | I8: 12
A9: в | B9: 2 | C9: в | D9: 10100 | E9: 5 | F9: 2 | G9: 10 | H9: 01100 | I9: 10
A10: е | B10: 2 | C10: е | D10: 01010 | E10: 5 | F10: 2 | G10: 10 | H10: 01101 | I10: 10
A11: и | B11: 2 | C11: и | D11: 10110 | E11: 5 | F11: 2 | G11: 10 | H11: 01110 | I11: 10
A12: й | B12: 2 | C12: й | D12: 0010 | E12: 4 | F12: 2 | G12: 8 | H12: 01111 | I12: 10
A13: м | B13: 2 | C13: м | D13: 11010 | E13: 5 | F13: 2 | G13: 10 | H13: 10100 | I13: 10
A14: р | B14: 2 | C14: р | D14: 00110 | E14: 5 | F14: 2 | G14: 10 | H14: 10101 | I14: 10
A15: я | B15: 2 | C15: я | D15: 10111 | E15: 5 | F15: 2 | G15: 10 | H15: 11100 | I15: 10
A16: , | B16: 1 | C16: - | D16: 01101 | E16: 5 | F16: 1 | G16: 5 | H16: 11101 | I16: 5
A17: - | B17: 1 | C17: , | D17: 01111 | E17: 5 | F17: 1 | G17: 5 | H17: 11110 | I17: 5
A18: г | B18: 1 | C18: г | D18: 11011 | E18: 5 | F18: 1 | G18: 5 | H18: 11111 | I18: 5
A19: ж | B19: 1 | C19: ж | D19: 11111 | E19: 5 | F19: 1 | G19: 5 | H19: 101100 | I19: 6
A20: н | B20: 1 | C20: н | D20: 01011 | E20: 5 | F20: 1 | G20: 5 | H20: 101101 | I20: 6
A21: ы | B21: 1 | C21: ы | D21: 00111 | E21: 5 | F21: 1 | G21: 5 | H21: 101110 | I21: 6
A22: ь | B22: 1 | C22: ь | D22: 10101 | E22: 5 | F22: 1 | G22: 5 | H22: 101111 | I22: 6
B23: =SUM(B1:B22) -> 64 | F23: =SUM(F1:F22) -> 64 | G23: =SUM(G1:G22) -> 264 | I23: =SUM(I1:I22) -> 261

Sheet 4
B1: 10 | D1: 000 | E1: 3 | F1: 10 | G1: =E1*F1 -> 30 | H1: 000 | I1: =LEN(H1)*F1 -> 30 | K1: N= | L1: 64 | M1: Iх= | N1: =CEILING(L1*LOG(L2,2),1) -> 282
A2: е | B2: 7 | C2: и | D2: 0100 | E2: 4 | F2: 4 | G2: =E2*F2 -> 16 | H2: 001 | I2: =LEN(H2)*F2 -> 12 | K2: M= | L2: 21 | M2: Iш= | N2: =CEILING(10*LOG(64/10,2)+9*LOG(64/9,2)+5*LOG(64/5,2)+12*LOG(64/4,2)+9*LOG(64/3,2)+14*LOG(64/2,2)+5*LOG(64,2),1) -> 259
A3: л | B3: 5 | C3: т | D3: 0110 | E3: 4 | F3: 4 | G3: 16 | H3: 0100 | I3: 16
A4: и | B4: 4 | C4: е | D4: 1000 | E4: 4 | F4: 7 | G4: 28 | H4: 0101 | I4: 28
A5: к | B5: 4 | C5: ы | D5: 1001 | E5: 4 | F5: 1 | G5: 4 | H5: 0110 | I5: 4
A6: т | B6: 4 | C6: л | D6: 1100 | E6: 4 | F6: 5 | G6: 20 | H6: 0111 | I6: 20
A7: , | B7: 3 | C7: к | D7: 1110 | E7: 4 | F7: 4 | G7: 16 | H7: 1000 | I7: 16
A8: ж | B8: 3 | C8: с | D8: 1111 | E8: 4 | F8: 3 | G8: 12 | H8: 1001 | I8: 12
A9: с | B9: 3 | C9: ё | D9: 00100 | E9: 5 | F9: 2 | G9: 10 | H9: 1010 | I9: 8
A10: ё | B10: 2 | C10: р | D10: 00101 | E10: 5 | F10: 1 | G10: 5 | H10: 11000 | I10: 5
A11: а | B11: 2 | C11: о | D11: 00110 | E11: 5 | F11: 2 | G11: 10 | H11: 11001 | I11: 10
A12: в | B12: 2 | C12: б | D12: 00111 | E12: 5 | F12: 1 | G12: 5 | H12: 11010 | I12: 5
A13: н | B13: 2 | C13: в | D13: 01010 | E13: 5 | F13: 2 | G13: 10 | H13: 11011 | I13: 10
A14: о | B14: 2 | C14: у | D14: 01011 | E14: 5 | F14: 2 | G14: 10 | H14: 11100 | I14: 10
A15: п | B15: 2 | C15: ж | D15: 01110 | E15: 5 | F15: 3 | G15: 15 | H15: 11101 | I15: 15
A16: у | B16: 2 | C16: я | D16: 01111 | E16: 5 | F16: 1 | G16: 5 | H16: 10110 | I16: 5
A17: ь | B17: 2 | C17: , | D17: 10100 | E17: 5 | F17: 3 | G17: 15 | H17: 10111 | I17: 15
A18: б | B18: 1 | C18: щ | D18: 10101 | E18: 5 | F18: 1 | G18: 5 | H18: 111100 | I18: 6
A19: р | B19: 1 | C19: а | D19: 10110 | E19: 5 | F19: 2 | G19: 10 | H19: 111101 | I19: 12
A20: щ | B20: 1 | C20: н | D20: 10111 | E20: 5 | F20: 2 | G20: 10 | H20: 111110 | I20: 12
A21: ы | B21: 1 | C21: п | D21: 11010 | E21: 5 | F21: 2 | G21: 10 | H21: 111111 | I21: 12
A22: я | B22: 1 | C22: ь | D22: 11011 | E22: 5 | F22: 2 | G22: =SUM(G1:G21) -> 262 | H22: 111101 | I22: =SUM(I1:I21) -> 263
F23: 2
F24: 1
F25: 1

Sheet 5
A1: о | B1: 10 | C1: о | D1: 000 | E1: 3 | F1: 10 | G1: =E1*F1 -> 30 | H1: 000 | I1: =LEN(H1)*F1 -> 30 | K1: N= | L1: 64 | M1: Iх= | N1: =CEILING(L1*LOG(L2,2),1) -> 294
B2: 9 | D2: 100 | E2: 3 | F2: 9 | G2: =E2*F2 -> 27 | H2: 001 | I2: =LEN(H2)*F2 -> 27 | K2: M= | L2: 24 | M2: Iш= | N2: =CEILING(10*LOG(64/10,2)+9*LOG(64/9,2)+5*LOG(64/5,2)+8*LOG(64/4,2)+12*LOG(64/3,2)+10*LOG(64/2,2)+10*LOG(64,2),1) -> 266
A3: н | B3: 5 | C3: н | D3: 1100 | E3: 4 | F3: 5 | G3: 20 | H3: 0100 | I3: 20
A4: д | B4: 4 | C4: д | D4: 0100 | E4: 4 | F4: 4 | G4: 16 | H4: 0101 | I4: 16
A5: с | B5: 4 | C5: с | D5: 0110 | E5: 4 | F5: 4 | G5: 16 | H5: 0110 | I5: 16
A6: , | B6: 3 | C6: , | D6: 11100 | E6: 5 | F6: 3 | G6: 15 | H6: 1000 | I6: 12
A7: в | B7: 3 | C7: в | D7: 11110 | E7: 5 | F7: 3 | G7: 15 | H7: 1001 | I7: 12
A8: м | B8: 3 | C8: м | D8: 01110 | E8: 5 | F8: 3 | G8: 15 | H8: 1010 | I8: 12
A9: п | B9: 3 | C9: п | D9: 1010 | E9: 4 | F9: 3 | G9: 12 | H9: 1011 | I9: 12
A10: а | B10: 2 | C10: а | D10: 00100 | E10: 5 | F10: 2 | G10: 10 | H10: 01110 | I10: 10
A11: е | B11: 2 | C11: е | D11: 01010 | E11: 5 | F11: 2 | G11: 10 | H11: 01111 | I11: 10
A12: и | B12: 2 | C12: и | D12: 11010 | E12: 5 | F12: 2 | G12: 10 | H12: 11000 | I12: 10
A13: й | B13: 2 | C13: й | D13: 10110 | E13: 5 | F13: 2 | G13: 10 | H13: 11001 | I13: 10
A14: ы | B14: 2 | C14: ы | D14: 00110 | E14: 5 | F14: 2 | G14: 10 | H14: 11010 | I14: 10
A15: г | B15: 1 | C15: г | D15: 010110 | E15: 6 | F15: 1 | G15: 6 | H15: 110110 | I15: 6
A16: з | B16: 1 | C16: з | D16: 11111 | E16: 5 | F16: 1 | G16: 5 | H16: 110111 | I16: 6
A17: л | B17: 1 | C17: л | D17: 11101 | E17: 5 | F17: 1 | G17: 5 | H17: 111000 | I17: 6
A18: р | B18: 1 | C18: р | D18: 010111 | E18: 6 | F18: 1 | G18: 6 | H18: 111001 | I18: 6
A19: т | B19: 1 | C19: т | D19: 00111 | E19: 5 | F19: 1 | G19: 5 | H19: 111010 | I19: 6
A20: у | B20: 1 | C20: у | D20: 101110 | E20: 6 | F20: 1 | G20: 6 | H20: 111011 | I20: 6
A21: х | B21: 1 | C21: х | D21: 101111 | E21: 6 | F21: 1 | G21: 6 | H21: 111100 | I21: 6
A22: ч | B22: 1 | C22: ч | D22: 00101 | E22: 5 | F22: 1 | G22: 5 | H22: 111101 | I22: 6
A23: ш | B23: 1 | C23: ш | D23: 01111 | E23: 5 | F23: 1 | G23: 5 | H23: 111110 | I23: 6
A24: ь | B24: 1 | C24: ь | D24: 11011 | E24: 5 | F24: 1 | G24: 5 | H24: 111111 | I24: 6
B25: =SUM(B1:B24) -> 64 | F25: =SUM(F1:F24) -> 64 | G25: =SUM(G1:G24) -> 270 | I25: =SUM(I1:I24) -> 267

Sheet 6
B1: 10 | D1: 000 | E1: 3 | F1: 10 | G1: =E1*F1 -> 30 | H1: 000 | I1: =LEN(H1)*F1 -> 30 | K1: N= | L1: 64 | M1: Iх= | N1: =CEILING(L1*LOG(L2,2),1) -> 282
A2: и | B2: 8 | C2: о | D2: 010 | E2: 3 | F2: 8 | G2: =E2*F2 -> 24 | H2: 001 | I2: =LEN(H2)*F2 -> 24 | K2: M= | L2: 21 | M2: Iш= | N2: =CEILING(10*LOG(64/10,2)+24*LOG(64/8,2)+8*LOG(64/4,2)+16*LOG(64/2,2)+6*LOG(64,2),1) -> 247
A3: л | B3: 8 | C3: и | D3: 100 | E3: 3 | F3: 8 | G3: 24 | H3: 010 | I3: 24
A4: о | B4: 8 | C4: л | D4: 110 | E4: 3 | F4: 8 | G4: 24 | H4: 011 | I4: 24
A5: м | B5: 4 | C5: м | D5: 1110 | E5: 4 | F5: 4 | G5: 16 | H5: 1000 | I5: 16
A6: е | B6: 3 | C6: г | D6: 00100 | E6: 5 | F6: 2 | G6: 10 | H6: 1001 | I6: 8
A7: б | B7: 2 | C7: д | D7: 00101 | E7: 5 | F7: 1 | G7: 5 | H7: 1010 | I7: 4
A8: г | B8: 2 | C8: р | D8: 00110 | E8: 5 | F8: 2 | G8: 10 | H8: 10110 | I8: 10
A9: з | B9: 2 | C9: в | D9: 00111 | E9: 5 | F9: 1 | G9: 5 | H9: 10111 | I9: 5 | K9: =3*LOG(64/3,2) -> 13.2451125
A10: к | B10: 2 | C10: е | D10: 01100 | E10: 5 | F10: 3 | G10: 15 | H10: 11000 | I10: 15
A11: н | B11: 2 | C11: ц | D11: 01101 | E11: 5 | F11: 1 | G11: 5 | H11: 11001 | I11: 5
A12: р | B12: 2 | C12: к | D12: 01110 | E12: 5 | F12: 2 | G12: 10 | H12: 11010 | I12: 10
A13: с | B13: 2 | C13: я | D13: 01111 | E13: 5 | F13: 2 | G13: 10 | H13: 11011 | I13: 10
A14: я | B14: 2 | C14: б | D14: 10100 | E14: 5 | F14: 2 | G14: 10 | H14: 11100 | I14: 10
A15: , | B15: 1 | C15: з | D15: 10110 | E15: 5 | F15: 2 | G15: 10 | H15: 111010 | I15: 12
A16: ё | B16: 1 | C16: н | D16: 10111 | E16: 5 | F16: 2 | G16: 10 | H16: 111011 | I16: 12
A17: в | B17: 1 | C17: с | D17: 11110 | E17: 5 | F17: 2 | G17: 10 | H17: 111100 | I17: 12
A18: д | B18: 1 | C18: ё | D18: 101010 | E18: 6 | F18: 1 | G18: 6 | H18: 111101 | I18: 6
A19: ж | B19: 1 | C19: ж | D19: 101011 | E19: 6 | F19: 1 | G19: 6 | H19: 111110 | I19: 6
A20: й | B20: 1 | C20: , | D20: 111110 | E20: 6 | F20: 1 | G20: 6 | H20: 111111 | I20: 6
A21: ц | B21: 1 | C21: й | D21: 111111 | E21: 6 | F21: 1 | G21: 6 | H21: 111112 | I21: 6
F22: =SUM(F1:F21) -> 64 | G22: =SUM(G1:G21) -> 252 | I22: =SUM(I1:I21) -> 255

Sheet 7
B1: 9 | D1: 000 | E1: 3 | F1: 9 | G1: =E1*F1 -> 27 | H1: 100 | I1: =LEN(H1)*F1 -> 27 | K1: N= | L1: 64 | M1: Iх= | N1: =CEILING(L1*LOG(L2,2),1) -> 282
A2: н | B2: 6 | C2: н | D2: 1000 | E2: 4 | F2: 6 | G2: =E2*F2 -> 24 | H2: 1010 | I2: =LEN(H2)*F2 -> 24 | K2: M= | L2: 21 | M2: Iш= | N2: =CEILING(9*LOG(64/9,2)+12*LOG(64/6,2)+12*LOG(64/4,2)+15*LOG(64/3,2)+12*LOG(64/2,2)+4*LOG(64,2),1) -> 265
A3: о | B3: 6 | C3: о | D3: 1100 | E3: 4 | F3: 6 | G3: 24 | H3: 1011 | I3: 24
A4: а | B4: 4 | C4: а | D4: 0100 | E4: 4 | F4: 4 | G4: 16 | H4: 0000 | I4: 16
A5: е | B5: 4 | C5: е | D5: 1110 | E5: 4 | F5: 4 | G5: 16 | H5: 0001 | I5: 16
A6: с | B6: 4 | C6: с | D6: 0110 | E6: 4 | F6: 4 | G6: 16 | H6: 0010 | I6: 16
A7: д | B7: 3 | C7: д | D7: 1010 | E7: 4 | F7: 3 | G7: 12 | H7: 0011 | I7: 12
A8: з | B8: 3 | C8: з | D8: 01110 | E8: 5 | F8: 3 | G8: 15 | H8: 0100 | I8: 12
A9: р | B9: 3 | C9: р | D9: 10110 | E9: 5 | F9: 3 | G9: 15 | H9: 0101 | I9: 12
A10: т | B10: 3 | C10: т | D10: 0010 | E10: 4 | F10: 3 | G10: 12 | H10: 0110 | I10: 12
A11: у | B11: 3 | C11: у | D11: 11110 | E11: 5 | F11: 3 | G11: 15 | H11: 0111 | I11: 12
A12: ! | B12: 2 | C12: ! | D12: 01010 | E12: 5 | F12: 2 | G12: 10 | H12: 11000 | I12: 10
A13: б | B13: 2 | C13: б | D13: 00110 | E13: 5 | F13: 2 | G13: 10 | H13: 11001 | I13: 10
A14: и | B14: 2 | C14: и | D14: 10111 | E14: 5 | F14: 2 | G14: 10 | H14: 11010 | I14: 10
A15: й | B15: 2 | C15: й | D15: 1101 | E15: 4 | F15: 2 | G15: 8 | H15: 11011 | I15: 10
A16: ч | B16: 2 | C16: ч | D16: 01011 | E16: 5 | F16: 2 | G16: 10 | H16: 11100 | I16: 10
A17: ю | B17: 2 | C17: ю | D17: 00111 | E17: 5 | F17: 2 | G17: 10 | H17: 11101 | I17: 10
A18: в | B18: 1 | C18: в | D18: 10010 | E18: 5 | F18: 1 | G18: 5 | H18: 111100 | I18: 6
A19: к | B19: 1 | C19: к | D19: 10011 | E19: 5 | F19: 1 | G19: 5 | H19: 111101 | I19: 6
A20: л | B20: 1 | C20: л | D20: 11111 | E20: 5 | F20: 1 | G20: 5 | H20: 111110 | I20: 6
A21: ы | B21: 1 | C21: ы | D21: 01111 | E21: 5 | F21: 1 | G21: 5 | H21: 111111 | I21: 6
B22: =SUM(B1:B21) -> 64 | F22: =SUM(F1:F21) -> 64 | G22: =SUM(G1:G21) -> 270 | I22: =SUM(I1:I21) -> 267

Sheet 8
B1: 10 | D1: 000 | E1: 3 | F1: 10 | G1: =E1*F1 -> 30 | H1: 100 | I1: =LEN(H1)*F1 -> 30 | K1: N= | L1: 64 | M1: Iх= | N1: =CEILING(L1*LOG(L2,2),1) -> 298
A2: е | B2: 6 | C2: е | D2: 1000 | E2: 4 | F2: 6 | G2: =E2*F2 -> 24 | H2: 000 | I2: =LEN(H2)*F2 -> 18 | K2: M= | L2: 25 | M2: Iш= | N2: =CEILING(10*LOG(64/10,2)+12*LOG(64/6,2)+12*LOG(64/4,2)+6*LOG(64/3,2)+14*LOG(64/2,2)+10*LOG(64,2),1) -> 273
A3: о | B3: 6 | C3: о | D3: 1100 | E3: 4 | F3: 6 | G3: 24 | H3: 001 | I3: 18
A4: н | B4: 4 | C4: н | D4: 0100 | E4: 4 | F4: 4 | G4: 16 | H4: 0100 | I4: 16
A5: с | B5: 4 | C5: с | D5: 1110 | E5: 4 | F5: 4 | G5: 16 | H5: 0101 | I5: 16
A6: т | B6: 4 | C6: т | D6: 0110 | E6: 4 | F6: 4 | G6: 16 | H6: 1010 | I6: 16
A7: в | B7: 3 | C7: в | D7: 10100 | E7: 5 | F7: 3 | G7: 15 | H7: 10110 | I7: 15
A8: у | B8: 3 | C8: у | D8: 01110 | E8: 5 | F8: 3 | G8: 15 | H8: 10111 | I8: 15
A9: , | B9: 2 | C9: , | D9: 10110 | E9: 5 | F9: 2 | G9: 10 | H9: 01100 | I9: 10
A10: г | B10: 2 | C10: г | D10: 11110 | E10: 5 | F10: 2 | G10: 10 | H10: 01101 | I10: 10
A11: д | B11: 2 | C11: д | D11: 00100 | E11: 5 | F11: 2 | G11: 10 | H11: 01110 | I11: 10
A12: и | B12: 2 | C12: и | D12: 01010 | E12: 5 | F12: 2 | G12: 10 | H12: 01111 | I12: 10
A13: л | B13: 2 | C13: л | D13: 10111 | E13: 5 | F13: 2 | G13: 10 | H13: 11000 | I13: 10
A14: п | B14: 2 | C14: п | D14: 11111 | E14: 5 | F14: 2 | G14: 10 | H14: 11001 | I14: 10
A15: ы | B15: 2 | C15: ы | D15: 00110 | E15: 5 | F15: 2 | G15: 10 | H15: 11010 | I15: 10
A16: ! | B16: 1 | C16: ! | D16: 010110 | E16: 6 | F16: 1 | G16: 6 | H16: 110110 | I16: 6
A17: ё | B17: 1 | C17: ё | D17: 10010 | E17: 5 | F17: 1 | G17: 5 | H17: 110111 | I17: 6
A18: ж | B18: 1 | C18: ж | D18: 10011 | E18: 5 | F18: 1 | G18: 5 | H18: 111000 | I18: 6
A19: з | B19: 1 | C19: з | D19: 010111 | E19: 6 | F19: 1 | G19: 6 | H19: 111001 | I19: 6
A20: р | B20: 1 | C20: р | D20: 00111 | E20: 5 | F20: 1 | G20: 5 | H20: 111010 | I20: 6
A21: ч | B21: 1 | C21: ч | D21: 11010 | E21: 5 | F21: 1 | G21: 5 | H21: 111011 | I21: 6
A22: ш | B22: 1 | C22: ш | D22: 11011 | E22: 5 | F22: 1 | G22: 5 | H22: 111100 | I22: 6
A23: ь | B23: 1 | C23: ь | D23: 00101 | E23: 5 | F23: 1 | G23: 5 | H23: 111101 | I23: 6
A24: э | B24: 1 | C24: э | D24: 01111 | E24: 5 | F24: 1 | G24: 5 | H24: 111110 | I24: 6
A25: ю | B25: 1 | C25: ю | D25: 10101 | E25: 5 | F25: 1 | G25: 5 | H25: 111111 | I25: 6
B26: =SUM(B1:B25) -> 64 | F26: =SUM(F1:F25) -> 64 | G26: =SUM(G1:G25) -> 278 | I26: =SUM(I1:I25) -> 274

Sheet Лист3
A1: -
A3: !
A4: ,
A5: а
A6: б
A7: в
A8: г
A9: д
A10: е
A11: ё
A12: ж
A13: з
A14: и
A15: й
A16: к
A17: л
A18: м
A19: н
A20: о
A21: п
A22: р
A23: с
A24: т
A25: у
A26: х
A27: ц
A28: ч
A29: ш
A30: щ
A31: ы
A32: ь
A33: э
A34: ю
A35: я

Sheet Лист4
A1: 1 | D1: 2 | G1: 3 | J1: 4 | M1: 5 | P1: 6 | S1: 7 | V1: 8
B2: 11 | E2: 8 | G2: о | H2: 11 | K2: 10 | M2: о | N2: 10 | Q2: 10 | T2: 9 | W2: 10
A3: л | B3: 4 | D3: о | E3: 7 | H3: 9 | J3: е | K3: 7 | N3: 9 | P3: и | Q3: 8 | S3: н | T3: 6 | V3: е | W3: 6
A4: н | B4: 4 | D4: а | E4: 4 | G4: к | H4: 5 | J4: л | K4: 5 | M4: н | N4: 5 | P4: л | Q4: 8 | S4: о | T4: 6 | V4: о | W4: 6
A5: о | B5: 4 | D5: в | E5: 4 | G5: с | H5: 5 | J5: и | K5: 4 | M5: д | N5: 4 | P5: о | Q5: 8 | S5: а | T5: 4 | V5: н | W5: 4
A6: у | B6: 4 | D6: е | E6: 4 | G6: п | H6: 4 | J6: к | K6: 4 | M6: с | N6: 4 | P6: м | Q6: 4 | S6: е | T6: 4 | V6: с | W6: 4
A7: ы | B7: 4 | D7: у | E7: 4 | G7: а | H7: 3 | J7: т | K7: 4 | M7: , | N7: 3 | P7: е | Q7: 3 | S7: с | T7: 4 | V7: т | W7: 4
A8: д | B8: 3 | D8: д | E8: 3 | G8: л | H8: 3 | J8: , | K8: 3 | M8: в | N8: 3 | P8: б | Q8: 2 | S8: д | T8: 3 | V8: в | W8: 3
A9: з | B9: 3 | D9: л | E9: 3 | G9: т | H9: 3 | J9: ж | K9: 3 | M9: м | N9: 3 | P9: г | Q9: 2 | S9: з | T9: 3 | V9: у | W9: 3
A10: и | B10: 3 | D10: н | E10: 3 | G10: в | H10: 2 | J10: с | K10: 3 | M10: п | N10: 3 | P10: з | Q10: 2 | S10: р | T10: 3 | V10: , | W10: 2
A11: с | B11: 3 | D11: я | E11: 3 | G11: е | H11: 2 | J11: а | K11: 2 | M11: а | N11: 2 | P11: к | Q11: 2 | S11: т | T11: 3 | V11: г | W11: 2
A12: ю | B12: 3 | D12: , | E12: 2 | G12: и | H12: 2 | J12: в | K12: 2 | M12: е | N12: 2 | P12: н | Q12: 2 | S12: у | T12: 3 | V12: д | W12: 2
A13: в | B13: 2 | D13: г | E13: 2 | G13: й | H13: 2 | J13: ё | K13: 2 | M13: и | N13: 2 | P13: р | Q13: 2 | S13: ! | T13: 2 | V13: и | W13: 2
A14: е | B14: 2 | D14: з | E14: 2 | G14: м | H14: 2 | J14: н | K14: 2 | M14: й | N14: 2 | P14: с | Q14: 2 | S14: б | T14: 2 | V14: л | W14: 2
A15: м | B15: 2 | D15: м | E15: 2 | G15: р | H15: 2 | J15: о | K15: 2 | M15: ы | N15: 2 | P15: я | Q15: 2 | S15: и | T15: 2 | V15: п | W15: 2
A16: р | B16: 2 | D16: р | E16: 2 | G16: я | H16: 2 | J16: п | K16: 2 | M16: г | N16: 1 | P16: , | Q16: 1 | S16: й | T16: 2 | V16: ы | W16: 2
A17: а | B17: 1 | D17: с | E17: 2 | G17: , | H17: 1 | J17: у | K17: 2 | M17: з | N17: 1 | P17: в | Q17: 1 | S17: ч | T17: 2 | V17: ! | W17: 1
A18: б | B18: 1 | D18: т | E18: 2 | G18: - | H18: 1 | J18: ь | K18: 2 | M18: л | N18: 1 | P18: д | Q18: 1 | S18: ю | T18: 2 | V18: ё | W18: 1
A19: ё | B19: 1 | D19: ж | E19: 1 | G19: г | H19: 1 | J19: б | K19: 1 | M19: р | N19: 1 | P19: ё | Q19: 1 | S19: в | T19: 1 | V19: ж | W19: 1
A20: ж | B20: 1 | D20: и | E20: 1 | G20: ж | H20: 1 | J20: р | K20: 1 | M20: т | N20: 1 | P20: ж | Q20: 1 | S20: к | T20: 1 | V20: з | W20: 1
A21: й | B21: 1 | D21: к | E21: 1 | G21: н | H21: 1 | J21: щ | K21: 1 | M21: у | N21: 1 | P21: й | Q21: 1 | S21: л | T21: 1 | V21: р | W21: 1
A22: п | B22: 1 | D22: п | E22: 1 | G22: ы | H22: 1 | J22: ы | K22: 1 | M22: х | N22: 1 | P22: ц | Q22: 1 | S22: ы | T22: 1 | V22: ч | W22: 1
A23: т | B23: 1 | D23: х | E23: 1 | G23: ь | H23: 1 | J23: я | K23: 1 | M23: ч | N23: 1 | V23: ш | W23: 1
A24: ш | B24: 1 | D24: ш | E24: 1 | M24: ш | N24: 1 | V24: ь | W24: 1
A25: ь | B25: 1 | D25: щ | E25: 1 | M25: ь | N25: 1 | V25: э | W25: 1
A26: я | B26: 1 | V26: ю | W26: 1

Sheet Лист5
A1: 2
B2: 8 | C2: 000 | D2: 24
A3: о | B3: 7 | C3: 010 | D3: 21
A4: а | B4: 4 | C4: 0010 | D4: 16
A5: в | B5: 4 | C5: 0011 | D5: 16
A6: е | B6: 4 | C6: 1000 | D6: 16
A7: у | B7: 4 | C7: 1001 | D7: 16
A8: д | B8: 3 | C8: 0110 | D8: 12
A9: л | B9: 3 | C9: 0111 | D9: 12
A10: н | B10: 3 | C10: 10100 | D10: 15
A11: я | B11: 3 | C11: 10101 | D11: 15
A12: , | B12: 2 | C12: 11000 | D12: 10
A13: г | B13: 2 | C13: 11001 | D13: 10
A14: з | B14: 2 | C14: 11010 | D14: 10
A15: м | B15: 2 | C15: 11011 | D15: 10
A16: р | B16: 2 | C16: 11100 | D16: 10
A17: с | B17: 2 | C17: 11101 | D17: 10
A18: т | B18: 2 | C18: 101100 | D18: 12
A19: ж | B19: 1 | C19: 101101 | D19: 6
A20: и | B20: 1 | C20: 101110 | D20: 6
A21: к | B21: 1 | C21: 101111 | D21: 6
A22: п | B22: 1 | C22: 111100 | D22: 6
A23: х | B23: 1 | C23: 111101 | D23: 6
A24: ш | B24: 1 | C24: 111110 | D24: 6
A25: щ | B25: 1 | C25: 111111 | D25: 6
D26: =SUM(D2:D25) -> 277

Sheet Лист6
A1: 3
A2: о | B2: 11 | C2: 00 | D2: 22
B3: 9 | C3: 100 | D3: 27
A4: к | B4: 5 | C4: 1100 | D4: 20
A5: с | B5: 5 | C5: 1101 | D5: 20
A6: п | B6: 4 | C6: 0100 | D6: 16
A7: а | B7: 3 | C7: 0101 | D7: 12
A8: л | B8: 3 | C8: 11100 | D8: 15
A9: т | B9: 3 | C9: 11101 | D9: 15
A10: в | B10: 2 | C10: 10100 | D10: 10
A11: е | B11: 2 | C11: 10101 | D11: 10
A12: и | B12: 2 | C12: 01100 | D12: 10
A13: й | B13: 2 | C13: 01101 | D13: 10
A14: м | B14: 2 | C14: 01110 | D14: 10
A15: р | B15: 2 | C15: 01111 | D15: 10
A16: я | B16: 2 | C16: 111100 | D16: 12
A17: , | B17: 1 | C17: 111101 | D17: 6
A18: - | B18: 1 | C18: 111110 | D18: 6
A19: г | B19: 1 | C19: 111111 | D19: 6
A20: ж | B20: 1 | C20: 101100 | D20: 6
A21: н | B21: 1 | C21: 101101 | D21: 6
A22: ы | B22: 1 | C22: 101110 | D22: 6
A23: ь | B23: 1 | C23: 101111 | D23: 6
D24: =SUM(D2:D23) -> 261
